bitfinex/quotes_ETHUSD_20250517
["timestamp","ask_amount","ask_price","bid_price","bid_amount"]
[1747457680474,3.99095596,2505.7,2505.2,7.728]
[1747457680781,3.99115126,2505.6,2505.3,7.729]
[1747457680929,7.98291317,2505.4,2504.9,0.47677533]
[1747457681129,4.80403471,2504.8,2504.7,0.63383766]
[1747457681428,12.80403471,2504.8,2504.7,0.63383766]
[1747457681629,14.8769703,2504.8,2504.7,0.63383766]
[1747457682152,0.29540494,2504.8,2504.7,0.63383766]
[1747457682362,3.99205175,2505.0,2504.7,8.50583766]
[1747457682363,7.883,2505.0,2504.7,8.50583766]
[1747457682585,11.87511269,2505.0,2504.8,7.873]
[1747457683059,3.99217533,2504.9,2504.8,7.873]
[1747457684246,0.29845713,2504.9,2504.7,7.873]
[1747457684572,3.99217533,2504.9,2504.8,7.873]
[1747457685669,3.9920693,2505.0,2504.8,7.873]
[1747457685941,11.86701596,2505.0,2504.9,7.873]
[1747457686571,12.16598149,2505.0,2504.9,7.873]
[1747457687381,4.29098149,2505.0,2504.9,7.873]
[1747457689071,3.99175835,2505.2,2504.9,7.873]
[1747457689281,3.99313181,2504.3,2504.2,0.66666667]
[1747457689483,3.99265351,2504.6,2504.2,0.66666667]
[1747457689805,12.03081835,2504.5,2504.3,7.874]
[1747457689974,4.78961213,2504.7,2504.3,7.874]
[1747457690176,12.02967343,2504.6,2504.3,8.6581]
[1747457690500,3.99267343,2504.6,2504.3,8.6581]
[1747457690705,3.99282802,2504.5,2504.3,8.6581]
[1747457691004,3.99282802,2504.5,2504.4,7.874]
[1747457693513,0.7971,2504.9,2504.4,7.874]
[1747457693715,8.015,2504.7,2504.4,7.874]
[1747457694167,3.99265714,2504.6,2504.2,0.66666667]
[1747457694366,8.015,2504.7,2504.3,7.874]
[1747457694567,3.99265351,2504.6,2504.3,7.874]
[1747457694793,3.99285586,2504.5,2504.3,7.874]
[1747457695398,3.99297236,2504.4,2504.3,7.874]
[1747457695601,3.99297236,2504.4,2504.3,7.875]
[1747457695974,0.7971,2504.9,2504.3,7.875]
[1747457696302,3.99188799,2505.1,2504.4,0.7948]
[1747457696600,3.99188799,2505.1,2504.5,3.99271245]
[1747457697107,12.00177863,2505.2,2504.7,3.99237008]
[1747457697297,12.00177863,2505.2,2504.9,0.8125]
[1747457697921,3.99188732,2505.1,2504.9,0.8125]
[1747457698118,3.99188732,2505.1,2505.0,7.874]
[1747457700319,11.98573897,2505.2,2505.0,7.874]
[1747457700480,3.99185661,2505.1,2505.0,7.874]
[1747457700876,0.7769,2505.7,2505.0,25.98365]
[1747457701175,3.99117336,2505.6,2505.1,3.99181987]
[1747457701388,3.99117336,2505.6,2505.0,29.97554235]
[1747457701880,3.99122329,2505.5,2505.0,29.97554235]
[1747457702074,3.99149561,2505.4,2505.0,18.10965]
[1747457702278,10.83325663,2505.7,2505.1,7.874]
[1747457702479,3.99145404,2505.4,2505.1,7.874]
[1747457703724,3.9913024,2505.5,2505.1,7.874]
[1747457704038,8.8052,2505.2,2504.3,0.63383766]
[1747457704330,4.79817236,2504.4,2504.3,0.63383766]
[1747457704632,12.24197236,2504.4,2504.3,0.63383766]
[1747457705597,12.24197236,2504.4,2504.3,8.87583766]
[1747457706801,12.24197236,2504.4,2504.3,8.87683766]
[1747457707325,12.24197236,2504.4,2504.3,8.243]
[1747457708131,3.99313181,2504.3,2504.2,0.66666667]
[1747457708334,3.99304997,2504.4,2504.2,8.90966667]
[1747457708529,3.99270262,2504.6,2504.2,8.90966667]
[1747457708831,8.221,2504.5,2504.2,9.69316667]
[1747457709033,3.9929742,2504.4,2504.2,9.69316667]
[1747457709333,3.99313181,2504.3,2504.2,9.69316667]
[1747457710636,3.99313181,2504.3,2504.2,9.0265]
[1747457712430,3.99237514,2504.8,2504.2,9.0265]
[1747457712623,3.99267921,2504.6,2504.2,9.0265]
[1747457712818,4.59774363,2504.8,2504.2,9.0265]
[1747457712819,0.7653,2504.9,2504.2,13.01976937]
[1747457713019,12.18346922,2504.8,2504.3,3.99313181]
[1747457713218,12.18341891,2504.8,2504.2,9.0265]
[1747457713421,12.18341891,2504.8,2504.3,0.90265]
[1747457713834,8.191,2504.8,2504.3,4.89562238]
[1747457714143,12.18346612,2504.8,2504.3,4.89562238]
[1747457714311,0.7653,2505.2,2504.5,4.76761293]
[1747457714312,8.183,2505.1,2504.5,4.76761293]
[1747457714508,3.99421397,2503.7,2502.8,2.70999912]
[1747457714745,3.99345071,2504.2,2503.3,0.7748]
[1747457715041,3.9933068,2504.2,2503.6,3.99414285]
[1747457715214,3.9933068,2504.2,2503.7,3.02559429]
[1747457715414,3.99346365,2504.1,2503.7,3.02559429]
[1747457715614,3.99345074,2504.1,2503.7,3.02559429]
[1747457715819,3.99362449,2504.0,2503.7,3.02559429]
[1747457716507,3.99362449,2504.0,2503.8,8.244]
[1747457716508,3.99376971,2503.9,2503.8,8.244]
[1747457716834,3.99402939,2503.8,2503.5,18.0188]
[1747457717141,3.99414273,2503.7,2503.6,8.244]
[1747457717953,3.99424828,2503.6,2503.5,17.244]
[1747457718167,3.99424828,2503.6,2503.5,25.488]
[1747457718445,3.99381213,2503.9,2503.5,8.244]
[1747457718446,3.99401968,2503.8,2503.5,8.244]
[1747457718646,12.46279582,2503.9,2503.5,8.244]
[1747457718860,3.99393213,2503.8,2503.5,8.244]
[1747457719063,12.46277071,2503.9,2503.5,8.244]
[1747457719247,3.99409436,2503.7,2503.5,8.244]
[1747457719416,3.99409436,2503.7,2503.4,0.7694]
[1747457719615,3.99409436,2503.7,2503.6,8.244]
[1747457720563,3.99393468,2503.8,2503.6,8.244]
[1747457720718,8.469,2503.9,2503.6,8.244]
[1747457721339,3.99393013,2503.8,2503.6,8.244]
[1747457721535,8.469,2503.9,2503.6,8.244]
[1747457721749,3.99394338,2503.8,2503.6,8.244]
[1747457721946,3.99352916,2504.1,2503.6,8.244]
[1747457722258,6.0094842,2505.1,2504.0,0.774]
[1747457722259,3.99305494,2504.4,2504.0,0.774]
[1747457722427,3.99305494,2504.4,2504.1,8.245]
[1747457723036,3.99273492,2504.6,2504.1,8.245]
[1747457723238,3.99297785,2504.4,2504.1,8.245]
[1747457723438,3.99289377,2504.5,2504.1,8.245]
[1747457723658,3.99270551,2504.6,2504.1,9.54626864]
[1747457723856,12.43253979,2504.7,2504.1,9.54626864]
[1747457724060,3.99281493,2504.5,2504.1,9.54626864]
[1747457726165,3.9927332,2504.6,2504.1,9.54626864]
[1747457726737,3.992827,2504.5,2504.1,9.54626864]
[1747457727162,8.44,2504.7,2504.1,13.53960944]
[1747457727464,3.99266627,2504.6,2504.1,13.53960944]
[1747457727763,3.99266627,2504.6,2504.1,9.54626864]
[1747457728446,3.99266627,2504.6,2504.1,13.53971791]
[1747457730252,3.99266627,2504.6,2504.2,8.244]
[1747457730685,3.99283689,2504.5,2504.3,8.244]
[1747457732086,8.362,2504.7,2504.3,8.244]
[1747457732379,3.99308368,2504.4,2504.0,0.55]
[1747457732548,3.99308368,2504.4,2504.1,8.244]
[1747457733787,3.99308368,2504.4,2504.2,8.244]
[1747457733788,3.99317167,2504.3,2504.2,8.244]
[1747457733953,3.99334203,2504.2,2503.8,0.55]
[1747457734156,3.99334203,2504.2,2503.9,8.244]
[1747457734685,3.99336236,2504.2,2503.9,8.244]
[1747457735083,3.99336236,2504.2,2503.8,0.55]
[1747457735289,3.99440782,2503.5,2503.4,0.63383766]
[1747457735486,12.56940782,2503.5,2503.4,0.63383766]
[1747457735687,20.56940782,2503.5,2503.4,0.63383766]
[1747457735859,3.99488654,2503.2,2503.1,8.345]
[1747457736859,3.99510539,2503.1,2502.8,0.66666667]
[1747457737061,3.99510539,2503.1,2502.9,8.346]
[1747457737383,3.99504614,2503.1,2502.8,0.66666667]
[1747457737570,3.99527908,2503.0,2502.8,9.01266667]
[1747457737966,3.99527908,2503.0,2502.8,0.66666667]
[1747457738268,3.99527908,2503.0,2502.9,8.346]
[1747457738470,3.99510131,2503.1,2502.9,8.346]
[1747457740091,3.99504614,2503.1,2503.0,8.347]
[1747457741187,2.56858506,2503.5,2503.0,8.347]
[1747457741370,3.99492206,2503.2,2503.0,8.347]
[1747457741573,3.99476584,2503.3,2503.0,8.347]
[1747457741798,12.51376584,2503.3,2503.0,8.347]
[1747457743363,3.99476584,2503.3,2503.0,8.347]
[1747457743578,8.502,2503.4,2503.0,8.347]
[1747457743763,12.49659454,2503.4,2503.0,8.347]
[1747457743964,3.99476047,2503.3,2503.0,8.347]
[1747457744261,12.48748892,2503.5,2503.0,12.3421895]
[1747457744458,3.99457894,2503.4,2503.0,8.347]
[1747457744663,12.48747606,2503.5,2503.0,8.347]
[1747457744862,3.99457256,2503.4,2503.0,8.347]
[1747457745062,12.4875511,2503.5,2503.0,8.347]
[1747457745286,12.4875511,2503.5,2503.0,12.34216946]
[1747457745478,3.99457519,2503.4,2503.0,8.347]
[1747457746405,3.99473106,2503.3,2503.0,8.347]
[1747457746696,3.99473852,2503.3,2503.0,8.347]
[1747457747003,12.48742684,2503.5,2503.0,8.347]
[1747457747369,3.99464007,2503.4,2503.0,8.347]
[1747457747663,2.98956274,2504.2,2503.0,9.64790129]
[1747457747973,3.99386758,2503.9,2503.4,3.99447714]
[1747457748186,3.99386758,2503.9,2503.5,8.348]
[1747457748388,12.45468965,2504.0,2503.5,8.348]
[1747457748602,3.99379436,2503.9,2503.5,8.348]
[1747457748814,13.47029944,2504.0,2503.5,12.34236611]
[1747457749521,3.99364408,2504.0,2503.5,12.34236611]
[1747457749688,3.99364408,2504.0,2503.5,8.348]
[1747457750418,3.99364408,2504.0,2503.5,12.34235898]
[1747457751809,3.99364408,2504.0,2503.5,8.348]
[1747457754330,3.99377056,2503.9,2503.5,8.348]
[1747457755120,3.99367107,2504.0,2503.5,12.34236739]
[1747457755510,3.99377313,2503.9,2503.4,3.99450568]
[1747457755710,3.99377313,2503.9,2503.6,8.348]
[1747457757016,3.99322786,2504.3,2503.8,3.99392332]
[1747457757191,12.37122786,2504.3,2503.9,0.809]
[1747457757398,13.49259055,2504.3,2503.9,0.809]
[1747457757591,3.99329656,2504.2,2503.9,0.809]
[1747457757824,8.377,2504.3,2503.9,4.80269441]
[1747457758029,12.66186191,2504.4,2503.9,5.28297775]
[1747457758326,13.48736919,2504.4,2504.0,3.99359635]
[1747457758515,12.3649835,2504.4,2504.1,8.348]
[1747457758921,3.9929835,2504.4,2504.1,8.348]
[1747457759117,12.36087391,2504.5,2504.1,8.348]
[1747457759318,15.75117152,2504.7,2504.2,3.99328802]
[1747457759503,3.99266018,2504.6,2504.1,12.34136435]
[1747457759705,3.99266018,2504.6,2504.2,0.809]
[1747457760911,3.9928501,2504.5,2504.2,0.809]
[1747457761232,5.11521279,2504.5,2504.3,8.347]
[1747457761832,1.12236269,2504.5,2504.3,8.347]
[1747457763348,5.11518968,2504.5,2504.3,8.347]
[1747457763544,3.99297236,2504.4,2504.3,8.347]
[1747457764877,5.11525803,2504.5,2504.3,8.347]
[1747457765152,3.99289534,2504.5,2504.3,8.347]
[1747457765737,4.80708317,2504.4,2503.9,3.99369384]
[1747457765937,0.814,2504.4,2504.0,12.30657345]
[1747457766256,4.80699025,2504.4,2504.0,8.313]
[1747457767455,0.814,2504.4,2504.0,12.3066032]
[1747457767756,3.9929899,2504.4,2504.0,8.313]
[1747457767955,1.12236269,2504.5,2504.1,3.99344487]
[1747457768325,4.29766426,2504.7,2504.3,3.99307772]
[1747457768326,1.42750296,2504.7,2504.3,3.99307772]
[1747457768527,13.70300163,2504.7,2504.2,3.99320613]
[1747457769734,5.42000163,2504.7,2504.2,3.99320613]
[1747457771358,1.42750296,2504.7,2504.2,3.99318498]
[1747457771553,5.42000884,2504.7,2504.2,3.99318498]
[1747457772057,1.42750296,2504.7,2504.3,3.99310442]
[1747457772225,1.12236269,2504.7,2504.4,3.99293777]
[1747457772425,1.12236269,2504.7,2504.5,8.313]
[1747457773149,1.12236269,2504.7,2504.5,12.30580886]
[1747457773361,8.246,2504.8,2504.5,8.313]
[1747457774464,8.246,2504.8,2504.5,12.30580529]
[1747457774972,5.91874071,2504.9,2504.5,8.313]
[1747457775144,9.35436269,2505.0,2504.6,3.99265351]
[1747457775464,9.35436269,2505.0,2504.7,17.244]
[1747457776059,1.12236269,2505.0,2504.7,17.244]
[1747457776264,8.7941,2505.1,2504.7,21.236485]
[1747457776438,1.12236269,2505.1,2504.7,17.244]
[1747457776639,1.12236269,2505.3,2504.8,0.7578]
[1747457776848,1.12236269,2505.5,2505.1,3.99176119]
[1747457777047,1.12236269,2505.5,2505.2,8.312]
[1747457777574,8.222,2505.6,2505.2,12.30368771]
[1747457777779,8.222,2505.6,2505.2,13.06148771]
[1747457778464,5.87133042,2505.7,2505.2,13.06148771]
[1747457778671,14.08333042,2505.7,2505.2,13.06148771]
[1747457779107,14.08333042,2505.7,2505.2,9.0698]
[1747457780022,3.99111117,2505.6,2505.2,9.0698]
[1747457780692,5.11361232,2505.5,2505.2,9.0698]
[1747457780890,5.11390062,2505.3,2504.9,0.7578]
[1747457781086,1.12236269,2505.3,2505.0,8.311]
[1747457781601,5.11390138,2505.3,2505.0,8.311]
[1747457781790,1.12236269,2505.3,2505.0,8.311]
[1747457782667,5.11390416,2505.3,2505.0,8.311]
[1747457783199,1.12236269,2505.3,2505.0,8.311]
[1747457783397,1.12236269,2505.3,2505.1,8.311]
[1747457783568,1.12236269,2505.3,2505.2,8.311]
[1747457784395,1.12236269,2505.3,2505.0,3.99197144]
[1747457784698,1.12236269,2505.3,2505.2,8.311]
[1747457785295,5.11392394,2505.3,2504.9,0.7578]
[1747457785499,3.99182136,2505.2,2504.7,23.31118779]
[1747457785689,5.86542158,2505.3,2504.7,23.31118779]
[1747457785690,3.99187973,2505.1,2504.8,8.31]
[1747457787387,3.99175417,2505.2,2504.8,8.31]
[1747457787812,3.99175417,2505.2,2504.9,8.31]
[1747457788819,10.01286269,2505.5,2505.0,3.99187644]
[1747457788997,9.26136269,2505.5,2505.1,3.99177903]
[1747457789302,13.25262613,2505.5,2505.0,4.76585295]
[1747457789500,13.25262613,2505.5,2505.2,8.31]
[1747457789501,9.26136269,2505.5,2505.2,8.31]
[1747457789701,13.25260937,2505.5,2505.2,8.31]
[1747457790118,1.87386269,2505.3,2504.7,18.0179]
[1747457790272,5.86544929,2505.3,2504.8,12.30225205]
[1747457791006,1.87386269,2505.3,2504.8,12.30225205]
[1747457791205,5.8654904,2505.3,2504.8,12.30225205]
[1747457791416,5.1139904,2505.3,2504.9,3.99215914]
[1747457791703,5.1139904,2505.3,2504.8,12.30226159]
[1747457791914,5.1139904,2505.3,2504.8,15.31554614]
[1747457794114,1.12236269,2505.3,2504.9,3.99209193]
[1747457794276,14.65829181,2505.5,2504.9,4.82081366]
[1747457794277,12.8417524,2505.5,2504.9,4.82081366]
[1747457794481,3.99155621,2505.3,2504.9,0.8287]
[1747457794907,3.99137862,2505.4,2504.8,11.32328455]
[1747457795090,3.99164473,2505.3,2504.8,15.31560773]
[1747457795504,5.11400742,2505.3,2504.8,15.31560773]
[1747457796192,1.12236269,2505.3,2504.9,3.9921655]
[1747457797214,3.9914699,2505.4,2505.0,0.8207]
[1747457798030,3.9914699,2505.4,2504.9,3.9921655]
[1747457798915,3.9914699,2505.4,2504.9,5.27618495]
[1747457800902,3.9914699,2505.4,2505.0,3.9919959]
[1747457801099,1.89466269,2505.7,2505.2,0.8207]
[1747457801294,8.05,2505.6,2505.3,8.088]
[1747457802206,5.88560763,2505.7,2505.3,8.088]
[1747457802401,5.11330763,2505.7,2505.3,8.088]
[1747457803024,1.12236269,2505.7,2505.3,12.07953494]
[1747457803201,5.11328287,2505.7,2505.3,8.088]
[1747457804220,5.1132855,2505.7,2505.3,8.088]
[1747457804428,5.11329788,2505.7,2505.3,8.088]
[1747457806627,3.99106296,2505.6,2505.3,8.088]
[1747457808232,5.11334692,2505.7,2505.3,8.088]
[1747457809829,1.12236269,2505.7,2505.3,12.079535]
[1747457810018,0.29464392,2505.8,2505.4,3.99136384]
[1747457810217,13.10704078,2505.9,2505.4,3.99136384]
[1747457810832,3.99077118,2505.8,2505.3,13.36948378]
[1747457811233,3.99077118,2505.8,2505.4,1.72324897]
[1747457811439,3.99077118,2505.8,2505.4,5.71462286]
[1747457811806,5.11301348,2505.9,2505.5,0.7813]
[1747457812134,1.4250856,2505.9,2505.3,8.8693]
[1747457812331,3.99137862,2505.4,2505.3,8.088]
[1747457812702,3.99157005,2505.3,2505.1,0.47573353]
[1747457812905,3.99146627,2505.4,2505.2,8.087]
[1747457813323,1.12236269,2505.5,2505.2,8.087]
[1747457813517,3.99140479,2505.4,2505.2,8.087]
[1747457813712,5.11363656,2505.5,2505.2,8.087]
[1747457814121,3.99108769,2505.6,2505.2,8.087]
[1747457814320,13.09534788,2505.7,2505.2,12.07868735]
[1747457814520,3.99108021,2505.6,2505.2,8.087]
[1747457815638,3.99077538,2505.8,2505.3,0.7813]
[1747457815825,7.973,2505.8,2505.4,3.99136006]
[1747457816020,1.42349973,2505.9,2505.5,3.99112105]
[1747457816408,5.41412921,2505.9,2505.4,3.99131347]
[1747457817309,5.41412921,2505.9,2505.4,6.39502657]
[1747457819052,1.42349973,2505.9,2505.3,0.7813]
[1747457819248,3.99083031,2505.8,2505.3,4.7728346]
[1747457820053,1.42349973,2505.9,2505.3,0.7813]
[1747457820345,1.42349973,2505.9,2505.5,3.99120277]
[1747457820534,1.42349973,2505.9,2505.5,3.99119803]
[1747457821042,1.42349973,2505.9,2505.4,3.99132838]
[1747457821043,5.41412931,2505.9,2505.4,3.99132838]
[1747457821744,0.30113704,2505.9,2505.5,4.54112781]
[1747457821958,1.94876269,2506.3,2505.6,0.818]
[1747457822166,4.81638479,2506.3,2505.8,3.99074147]
[1747457822313,5.11256462,2506.2,2505.7,29.31282216]
[1747457822513,5.11256462,2506.2,2505.8,0.75845253]
[1747457822713,1.12236269,2506.2,2505.8,4.74919105]
[1747457822910,0.8264,2506.3,2505.9,3.99050188]
[1747457823116,0.8264,2506.3,2505.8,0.75845253]
[1747457823117,1.12236269,2506.3,2505.8,0.75845253]
[1747457823315,5.11238207,2506.3,2505.8,4.74910623]
[1747457823550,5.11238207,2506.3,2505.9,1.6852039]
[1747457824069,3.99010665,2506.2,2505.9,1.6852039]
[1747457824348,0.2952353,2506.2,2505.9,1.6852039]
[1747457824536,3.9901167,2506.2,2505.9,1.6852039]
[1747457825149,5.11238586,2506.3,2505.9,1.6852039]
[1747457825315,3.99010823,2506.2,2505.9,1.6852039]
[1747457825516,1.12236269,2506.1,2505.8,0.75845253]
[1747457825718,3.9904261,2506.0,2505.8,0.75845253]
[1747457826515,5.11267654,2506.1,2505.8,0.75845253]
[1747457829351,0.2948949,2506.2,2505.8,0.75845253]
[1747457829549,5.11237698,2506.3,2505.8,4.74911616]
[1747457829715,5.11237698,2506.3,2505.9,3.00711162]
[1747457830354,3.99011978,2506.2,2505.9,3.00711162]
[1747457830933,1.12236269,2506.3,2505.9,3.00711162]
[1747457831131,5.1123907,2506.3,2505.9,3.00711162]
[1747457831557,3.99011354,2506.2,2505.9,3.00711162]
[1747457831719,5.11239652,2506.3,2505.9,3.00711162]
[1747457832031,5.11239652,2506.3,2506.0,0.53173985]
[1747457832225,1.12236269,2506.3,2506.0,0.53173985]
[1747457832852,5.11231324,2506.3,2506.0,0.53173985]
[1747457833063,5.11231057,2506.3,2506.0,0.53173985]
[1747457833755,5.11238604,2506.3,2506.0,0.53173985]
[1747457833975,5.11238604,2506.3,2506.1,0.43446515]
[1747457834163,5.11238604,2506.3,2506.2,7.92]
[1747457834320,0.2953201,2506.4,2506.2,7.92]
[1747457834630,4.77818215,2506.6,2506.2,7.92]
[1747457834830,1.12236269,2506.5,2506.3,1.23446428]
[1747457835030,5.11202017,2506.5,2506.3,1.23446428]
[1747457835887,5.11210614,2506.5,2506.3,1.23446428]
[1747457836806,1.12236269,2506.5,2506.3,1.23446428]
[1747457837087,3.98901445,2506.9,2506.4,4.53967519]
[1747457837383,3.98891616,2507.0,2506.5,4.78465799]
[1747457838277,5.11103564,2507.1,2506.5,0.7951]
[1747457838478,3.98895784,2507.0,2506.5,4.7847043]
[1747457838670,4.28987203,2507.0,2506.5,4.7847043]
[1747457838870,3.98900518,2506.9,2506.6,0.62501507]
[1747457839079,3.98900518,2506.9,2506.7,25.15]
[1747457839284,4.78974951,2506.8,2506.7,17.231]
[1747457839580,4.78974951,2506.8,2506.7,25.15]
[1747457842385,5.9121122,2506.8,2506.7,25.15]
[1747457843583,5.1115122,2506.8,2506.7,25.15]
[1747457843766,11.85200518,2506.9,2506.7,25.15]
[1747457843767,3.9890583,2506.9,2506.7,25.15]
[1747457843977,5.1115122,2506.8,2506.7,17.231]
[1747457844170,5.1115122,2506.8,2506.7,25.15]
[1747457844374,1.12236269,2506.8,2506.7,26.8731]
[1747457846491,3.9891095,2506.9,2506.7,26.8731]
[1747457846865,1.42866156,2507.0,2506.7,26.8731]
[1747457847068,3.98901773,2506.9,2506.8,7.919]
[1747457848194,5.4175275,2507.0,2506.8,7.919]
[1747457848369,1.42866156,2507.0,2506.8,10.493204]
[1747457848887,5.41758554,2507.0,2506.8,10.493204]
[1747457851785,1.42866156,2507.0,2506.8,10.493204]
[1747457851971,0.30629887,2507.0,2506.8,10.493204]
[1747457852289,3.98883444,2507.0,2506.8,10.493204]
[1747457852461,3.98883444,2507.0,2506.9,1.7231]
[1747457852981,3.98883444,2507.0,2506.8,7.919]
[1747457853296,5.11135307,2506.9,2506.8,7.919]
[1747457854966,3.98899038,2506.9,2506.8,7.919]
[1747457855161,5.11135307,2506.9,2506.8,7.919]
[1747457857368,5.90785307,2506.9,2506.8,7.919]
[1747457857879,3.98914951,2506.8,2506.7,17.231]
[1747457858069,3.98914951,2506.8,2506.7,25.032]
[1747457858396,3.98914951,2506.8,2506.7,17.231]
[1747457858576,3.98914951,2506.8,2506.7,25.032]
[1747457859004,5.00816043,2506.8,2506.7,25.032]
[1747457859295,3.9890729,2506.9,2506.7,25.032]
[1747457860477,3.98914951,2506.8,2506.7,17.231]
[1747457860886,3.98914951,2506.8,2506.7,25.032]
[1747457862273,5.1114063,2506.9,2506.7,25.032]
[1747457863270,1.12236269,2506.9,2506.7,25.032]
[1747457864875,5.1113644,2506.9,2506.7,25.032]
[1747457868605,5.11136901,2506.9,2506.7,25.032]
[1747457869375,3.98914951,2506.8,2506.7,25.032]
[1747457869972,5.11140707,2506.9,2506.7,25.032]
[1747457870175,3.98914951,2506.8,2506.7,25.032]
[1747457873407,4.78044951,2506.8,2506.7,25.032]
[1747457873605,4.78044951,2506.8,2506.7,17.231]
[1747457873803,4.78044951,2506.8,2506.7,25.032]
[1747457874611,4.78044951,2506.8,2506.7,17.231]
[1747457874916,6.69047783,2506.8,2506.7,25.033]
[1747457877522,3.98970883,2506.5,2505.9,0.47573353]
[1747457877816,1.90856269,2506.6,2506.0,7.802]
[1747457878017,3.98982144,2506.4,2506.1,0.8322]
[1747457878200,5.11189394,2506.6,2506.1,4.82238745]
[1747457878406,5.11189394,2506.6,2506.2,1.66147568]
[1747457878605,1.12236269,2506.6,2506.2,5.65149624]
[1747457878906,1.12236269,2506.6,2506.2,1.66147568]
[1747457879089,0.37323422,2506.5,2506.2,1.66147568]
[1747457879482,0.37323422,2506.5,2506.3,0.64838427]
[1747457879483,4.3628825,2506.5,2506.3,0.64838427]
[1747457879717,4.3628825,2506.5,2506.2,1.66147568]
[1747457879917,4.3628825,2506.5,2506.3,7.802]
[1747457880494,0.37323422,2506.4,2506.3,7.802]
[1747457881017,4.36302036,2506.4,2506.2,1.66147568]
[1747457881219,4.3631928,2506.3,2506.1,0.8322]
[1747457881425,4.3631928,2506.3,2506.2,7.802]
[1747457882100,1.12236269,2506.9,2506.2,8.5889]
[1747457882298,3.98932542,2506.7,2506.3,1.25790662]
[1747457882507,1.12236269,2506.9,2506.4,0.7869]
[1747457882711,0.2931066,2507.0,2506.6,0.7869]
[1747457883007,11.83762782,2507.2,2506.7,7.802]
[1747457883218,3.98870974,2507.1,2506.7,7.802]
[1747457883415,3.98870974,2507.1,2506.7,26.68778881]
[1747457883598,5.11107243,2507.1,2506.7,26.68778881]
[1747457884433,3.98870974,2507.1,2506.7,26.68778881]
[1747457884638,5.11107243,2507.1,2506.7,26.68778881]
[1747457886935,0.7523,2506.6,2506.3,0.47573353]
[1747457887134,7.865,2506.6,2506.3,0.47573353]
[1747457887429,3.98933643,2506.7,2506.4,0.7882]
[1747457887601,3.98933643,2506.7,2506.5,7.83]
[1747457888136,3.9894678,2506.6,2506.3,0.47573353]
[1747457888438,3.98978614,2506.4,2506.3,0.47573353]
[1747457888623,3.98978614,2506.4,2506.3,8.30573353]
[1747457889845,3.98978614,2506.4,2506.3,7.83]
[1747457890606,5.11214883,2506.4,2506.3,7.831]
[1747457891563,11.83971536,2506.5,2506.3,7.831]
[1747457891739,7.849,2506.5,2506.3,8.69292]
[1747457892127,3.9895085,2506.6,2506.3,8.69292]
[1747457893334,12.96074743,2506.7,2506.3,8.69292]
[1747457893665,3.98949259,2506.6,2506.3,8.69292]
[1747457894637,3.98963892,2506.5,2506.3,8.69292]
[1747457896249,3.98960029,2506.6,2506.3,8.69292]
[1747457896851,0.30326449,2507.2,2506.5,0.7524]
[1747457897032,11.85432221,2507.4,2506.8,3.98907199]
[1747457897239,3.98883127,2507.0,2506.9,7.831]
[1747457897733,4.36169832,2507.0,2506.9,7.831]
[1747457898845,3.98899038,2506.9,2506.8,17.23]
[1747457899068,0.37286705,2507.0,2506.8,25.06]
[1747457899259,3.98877183,2507.1,2506.8,25.06]
[1747457899466,1.12236269,2507.2,2506.8,25.06]
[1747457899467,5.11095947,2507.2,2506.8,25.06]
[1747457900048,0.37277445,2507.1,2506.8,25.06]
[1747457900244,0.37277445,2507.1,2506.8,28.04017044]
[1747457900414,4.3614895,2507.1,2506.8,28.04017044]
[1747457900616,0.37277445,2507.0,2506.8,28.04017044]
[1747457901752,3.98867967,2507.1,2506.8,28.04017044]
[1747457903952,5.11088003,2507.2,2506.8,28.04017044]
[1747457904133,4.36138208,2507.1,2506.8,28.04017044]
[1747457904342,3.98884631,2507.0,2506.8,28.04017044]
[1747457904870,4.3614336,2507.0,2506.9,7.83]
[1747457905227,3.98899038,2506.9,2506.8,17.23]
[1747457905426,4.42513374,2506.9,2506.8,25.06]
[1747457905865,4.79772103,2506.9,2506.8,25.06]
[1747457906037,4.79772103,2506.9,2506.8,17.23]
[1747457906359,4.79772103,2506.9,2506.8,25.06]
[1747457906524,4.36157767,2506.9,2506.8,25.06]
[1747457907273,4.36157767,2506.9,2506.8,17.23]
[1747457907420,5.11947767,2506.9,2506.8,25.06]
[1747457908629,5.11947767,2506.9,2506.8,17.23]
[1747457908958,5.11947767,2506.9,2506.8,25.06]
[1747457909349,6.92514768,2506.9,2506.8,25.06]
[1747457913571,6.92514768,2506.9,2506.8,7.83]
[1747457914369,12.15157767,2506.9,2506.8,7.83]
[1747457914866,4.36157767,2506.9,2506.8,7.83]
[1747457915077,4.36157767,2506.9,2506.8,8.6058]
[1747457915078,0.37258729,2506.9,2506.8,8.6058]
[1747457916249,0.37258729,2507.0,2506.8,8.6058]
[1747457916585,0.37258729,2507.0,2506.8,9.86531992]
[1747457916948,5.11111796,2507.1,2506.8,9.86531992]
[1747457918471,0.37270632,2507.0,2506.8,9.86531992]
[1747457919678,5.11104682,2507.1,2506.8,9.86531992]
[1747457919844,3.98883885,2507.0,2506.8,9.86531992]
[1747457920044,5.111121,2507.1,2506.8,27.09231992]
[1747457920243,1.12236269,2507.1,2506.8,27.09231992]
[1747457920443,5.11110443,2507.1,2506.8,27.09231992]
[1747457921586,0.37283524,2507.0,2506.8,27.09231992]
[1747457923276,5.11110443,2507.1,2506.8,27.09231992]
[1747457923659,1.12236269,2507.1,2506.8,27.09231992]
[1747457924091,3.98852919,2507.2,2506.8,27.09231992]
[1747457925575,0.37296277,2507.1,2506.8,27.09231992]
[1747457926284,0.36239212,2507.1,2506.8,27.09231992]
[1747457927256,3.98852919,2507.2,2506.9,3.03778408]
[1747457929192,5.41646074,2507.3,2506.9,3.03778408]
[1747457929193,3.98867395,2507.1,2506.9,3.03778408]
[1747457929387,3.98867217,2507.1,2506.9,3.03778408]
[1747457929584,3.98899038,2506.9,2506.8,17.227]
[1747457929790,3.98899038,2506.9,2506.8,25.013]
[1747457930091,3.98891869,2507.0,2506.8,25.013]
[1747457930389,5.1111016,2507.1,2506.8,25.013]
[1747457930890,5.1111016,2507.1,2506.9,7.786]
[1747457931082,3.98883127,2507.0,2506.9,7.786]
[1747457931490,5.11111925,2507.1,2506.9,7.786]